bitfinex/quotes_BTCUSD_20241102
["timestamp","ask_amount","ask_price","bid_price","bid_amount"]
[1730524136290,0.03973475,69514.0,69513.0,0.33348349]
[1730524136506,0.01890752,69514.0,69513.0,0.41018349]
[1730524136980,0.04033836,69514.0,69513.0,0.41018349]
[1730524137789,0.04033836,69514.0,69513.0,0.50255406]
[1730524137978,0.04033836,69514.0,69513.0,0.61223307]
[1730524138189,0.01790752,69514.0,69513.0,0.61123307]
[1730524138341,0.01890752,69514.0,69513.0,0.61823307]
[1730524138538,0.01890752,69514.0,69513.0,0.62523307]
[1730524138539,0.01990752,69514.0,69513.0,0.62523307]
[1730524138736,0.01890752,69514.0,69513.0,0.61823307]
[1730524138945,0.01790752,69514.0,69513.0,0.61123307]
[1730524139146,0.01990752,69514.0,69513.0,0.62923307]
[1730524141515,0.01990752,69514.0,69513.0,0.51855406]
[1730524142406,0.01990752,69514.0,69513.0,0.52355406]
[1730524142607,0.01990752,69514.0,69513.0,0.52555406]
[1730524143271,0.01990752,69514.0,69513.0,0.52355406]
[1730524144645,0.01990752,69514.0,69513.0,0.52555406]
[1730524144861,0.01990752,69514.0,69513.0,0.52355406]
[1730524145061,0.01990752,69514.0,69513.0,0.65805256]
[1730524145431,0.01990752,69514.0,69513.0,0.68105256]
[1730524148869,0.01990752,69514.0,69513.0,0.72405693]
[1730524149071,0.01990752,69514.0,69513.0,0.68105256]
[1730524149233,0.01990752,69514.0,69513.0,0.74556123]
[1730524149696,0.01990752,69514.0,69513.0,0.68105256]
[1730524150077,0.01790752,69514.0,69513.0,0.66305256]
[1730524150287,0.01890752,69514.0,69513.0,0.73104406]
[1730524151100,0.01890752,69514.0,69513.0,0.68805256]
[1730524151283,0.01890752,69514.0,69513.0,0.81744214]
[1730524151454,0.01890752,69514.0,69513.0,0.77445256]
[1730524155959,0.01890752,69514.0,69513.0,0.79335956]
[1730524159215,0.01890752,69514.0,69513.0,0.79335956]
[1730524160200,0.01890752,69514.0,69513.0,0.9363233]
[1730524160440,0.01890752,69514.0,69513.0,0.89335956]
[1730524160632,0.01890752,69514.0,69513.0,0.9363233]
[1730524161908,0.01890752,69514.0,69513.0,1.1112521]
[1730524162162,0.01890752,69514.0,69513.0,1.11124534]
[1730524162325,0.01890752,69514.0,69513.0,1.04680519]
[1730524162761,0.01890752,69514.0,69513.0,1.13272539]
[1730524163355,0.01890752,69514.0,69513.0,1.13272307]
[1730524163741,0.01890752,69514.0,69513.0,1.15420544]
[1730524163950,0.01890752,69514.0,69513.0,1.24157601]
[1730524165298,0.01890752,69514.0,69513.0,1.241571]
[1730524165525,0.01890752,69514.0,69513.0,0.98073013]
[1730524165933,0.01890752,69514.0,69513.0,1.08812536]
[1730524166137,0.01890752,69514.0,69513.0,1.24161687]
[1730524168581,0.01890752,69514.0,69513.0,1.13422164]
[1730524168970,0.01890752,69514.0,69513.0,0.98073013]
[1730524171267,0.01890752,69514.0,69513.0,1.02275553]
[1730524178550,0.01890752,69514.0,69513.0,1.17637245]
[1730524181343,0.01890752,69514.0,69513.0,1.30537236]
[1730524181966,0.01890752,69514.0,69513.0,1.30551633]
[1730524182391,0.01890752,69514.0,69513.0,1.17642442]
[1730524185210,0.002644,69514.0,69513.0,1.17642442]
[1730524191358,0.002644,69514.0,69513.0,1.36703669]
[1730524192547,0.002644,69514.0,69513.0,1.27583669]
[1730524193329,0.002644,69514.0,69513.0,1.08522442]
[1730524195447,0.002644,69514.0,69513.0,0.99785385]
[1730524198260,0.002644,69514.0,69513.0,0.92115385]
[1730524198436,0.002644,69514.0,69513.0,0.83378328]
[1730524203129,0.002644,69514.0,69513.0,0.86258328]
[1730524203340,0.002644,69514.0,69513.0,0.83378328]
[1730524203507,0.002644,69514.0,69513.0,0.83476803]
[1730524208047,0.002644,69514.0,69513.0,0.83559193]
[1730524208304,0.002644,69514.0,69513.0,0.83573092]
[1730524211384,0.002644,69514.0,69513.0,0.83373092]
[1730524212289,0.002644,69514.0,69513.0,0.83573092]
[1730524212782,0.002644,69514.0,69513.0,0.83550039]
[1730524214417,0.002644,69514.0,69513.0,1.02671329]
[1730524221388,0.002644,69514.0,69513.0,0.83550039]
[1730524222172,0.002644,69514.0,69513.0,0.83538738]
[1730524222531,0.002644,69514.0,69513.0,1.02654596]
[1730524223760,0.169544,69514.0,69513.0,0.94014596]
[1730524223962,0.169544,69514.0,69513.0,0.74898738]
[1730524226295,0.169544,69514.0,69513.0,0.83538738]
[1730524226724,0.001644,69515.0,69514.0,0.0984]
[1730524226931,0.0805,69531.0,69527.0,0.32208]
[1730524227182,0.001644,69533.0,69527.0,0.61600148]
[1730524227394,0.01718784,69528.0,69527.0,0.70337205]
[1730524227610,0.001644,69528.0,69527.0,0.84184935]
[1730524227823,0.001644,69528.0,69527.0,0.97127696]
[1730524228328,0.001644,69528.0,69527.0,0.84184935]
[1730524229154,0.002644,69528.0,69527.0,0.85584935]
[1730524229768,0.002644,69528.0,69527.0,0.86984935]
[1730524230942,0.002644,69528.0,69527.0,0.95721992]
[1730524233021,0.082142,69541.0,69527.0,0.95721992]
[1730524233022,0.001642,69541.0,69539.0,0.235662]
[1730524233281,0.001642,69541.0,69539.0,0.70719998]
[1730524233483,0.02499326,69540.0,69539.0,0.70432461]
[1730524233681,0.001642,69540.0,69539.0,0.70432461]
[1730524234601,0.001642,69540.0,69539.0,0.61695404]
[1730524234813,0.001642,69540.0,69539.0,0.76045254]
[1730524234999,0.001642,69540.0,69539.0,0.76145254]
[1730524235361,0.001642,69540.0,69539.0,0.77545254]
[1730524235573,0.001642,69540.0,69539.0,0.76345254]
[1730524236151,0.001642,69540.0,69539.0,0.76790162]
[1730524236384,0.001642,69540.0,69539.0,0.78190162]
[1730524237194,0.001642,69540.0,69539.0,0.69453105]
[1730524238523,0.001642,69540.0,69539.0,0.69453104]
[1730524239407,0.001642,69540.0,69539.0,0.80198228]
[1730524240269,0.001642,69540.0,69539.0,0.69453104]
[1730524240733,0.001642,69540.0,69539.0,0.69433944]
[1730524242530,0.001642,69540.0,69539.0,0.78025804]
[1730524242844,0.001642,69540.0,69539.0,0.80905804]
[1730524243071,0.001642,69540.0,69539.0,0.72313944]
[1730524243291,0.001642,69540.0,69539.0,0.8880496]
[1730524243688,0.001642,69541.0,69540.0,0.141461]
[1730524243888,0.001642,69541.0,69540.0,0.69871939]
[1730524244114,0.001642,69541.0,69540.0,0.69584426]
[1730524244335,0.18,69552.0,69551.0,0.112645]
[1730524244555,0.02338537,69552.0,69551.0,0.55190976]
[1730524244774,0.038,69554.0,69553.0,0.100642]
[1730524244974,0.038,69554.0,69553.0,0.47698597]
[1730524245758,0.038,69554.0,69553.0,0.47698596]
[1730524246325,0.038,69554.0,69553.0,0.49098596]
[1730524247311,0.038,69554.0,69553.0,0.50498596]
[1730524248172,0.038,69554.0,69553.0,0.49098596]
[1730524248589,0.038,69554.0,69553.0,0.5693932]
[1730524248804,0.038,69554.0,69553.0,0.50498596]
[1730524249155,0.038,69554.0,69553.0,0.5693932]
[1730524249357,0.038,69554.0,69553.0,0.50498596]
[1730524249572,0.038,69554.0,69553.0,0.50580696]
[1730524249764,0.038,69554.0,69553.0,0.55320772]
[1730524249969,0.038,69554.0,69553.0,0.55320742]
[1730524250913,0.038,69554.0,69553.0,0.51029597]
[1730524252872,0.038,69554.0,69553.0,0.52509597]
[1730524253076,0.038,69554.0,69553.0,0.51109597]
[1730524253483,0.038,69554.0,69553.0,0.52509597]
[1730524253653,0.038,69554.0,69553.0,0.53909597]
[1730524254242,0.038,69554.0,69553.0,0.57709597]
[1730524256369,0.038,69554.0,69553.0,0.66343597]
[1730524257191,0.038,69554.0,69553.0,0.70631295]
[1730524257392,0.038,69554.0,69553.0,0.70631294]
[1730524258297,0.038,69554.0,69553.0,0.64943596]
[1730524258505,0.038,69554.0,69553.0,0.63543596]
[1730524258911,0.038,69554.0,69553.0,0.64943596]
[1730524259592,0.038,69554.0,69553.0,0.66343596]
[1730524259730,0.038,69554.0,69553.0,0.67743596]
[1730524260219,0.038,69554.0,69553.0,0.63543596]
[1730524260677,0.038,69554.0,69553.0,0.66343596]
[1730524262456,0.001642,69555.0,69554.0,0.338781]
[1730524262657,0.001642,69555.0,69554.0,0.56044349]
[1730524263467,0.001642,69555.0,69554.0,0.65124349]
[1730524263674,0.001642,69555.0,69554.0,0.66524349]
[1730524264391,0.001642,69555.0,69554.0,0.67924349]
[1730524265353,0.001642,69555.0,69554.0,0.67924348]
[1730524265575,0.001642,69555.0,69554.0,0.74351948]
[1730524265789,0.001642,69555.0,69554.0,0.67924348]
[1730524265996,0.001642,69555.0,69554.0,0.74351948]
[1730524266201,0.001642,69555.0,69554.0,0.7435392]
[1730524266401,0.001642,69555.0,69554.0,0.89704937]
[1730524267432,0.001642,69555.0,69554.0,0.83275365]
[1730524268390,0.001642,69555.0,69554.0,0.91848127]
[1730524268591,0.001642,69555.0,69554.0,0.83275365]
[1730524269409,0.001642,69555.0,69554.0,0.91848127]
[1730524270221,0.001642,69555.0,69554.0,0.83275365]
[1730524270667,0.001642,69555.0,69554.0,0.83352941]
[1730524271287,0.001642,69555.0,69554.0,0.94081337]
[1730524272090,0.05834617,69567.0,69554.0,0.84017237]
[1730524272290,0.05834617,69567.0,69566.0,0.53681939]
[1730524272532,0.05834617,69567.0,69566.0,0.53701256]
[1730524274334,0.05834617,69567.0,69566.0,0.55101256]
[1730524274910,0.05834617,69567.0,69566.0,0.62253056]
[1730524275968,0.05834617,69567.0,69566.0,0.62708972]
[1730524276182,0.05834617,69567.0,69566.0,0.76556702]
[1730524276421,0.05834617,69567.0,69566.0,0.80853587]
[1730524276849,0.05834617,69567.0,69566.0,0.76556702]
[1730524277071,0.0992,69568.0,69567.0,0.223622]
[1730524277313,0.0992,69568.0,69567.0,0.40525949]
[1730524277519,0.0992,69568.0,69567.0,0.48343546]
[1730524277728,0.0992,69568.0,69567.0,0.54788873]
[1730524277953,0.0992,69568.0,69567.0,0.48343546]
[1730524278168,0.0992,69568.0,69567.0,0.48343545]
[1730524278383,0.0992,69568.0,69567.0,0.63814565]
[1730524278658,0.0992,69568.0,69567.0,0.71666932]
[1730524278863,0.0992,69568.0,69567.0,0.65214565]
[1730524279089,0.0992,69568.0,69567.0,0.71666966]
[1730524279318,0.0992,69568.0,69567.0,0.65214565]
[1730524279746,0.0992,69568.0,69567.0,0.66614565]
[1730524281269,0.0992,69568.0,69567.0,0.75208335]
[1730524282168,0.0992,69568.0,69567.0,0.66614565]
[1730524282420,0.0992,69568.0,69567.0,0.77356777]
[1730524284186,0.0992,69568.0,69567.0,0.77438877]
[1730524284629,0.100842,69568.0,69567.0,0.77438877]
[1730524285291,0.100842,69568.0,69567.0,0.66696665]
[1730524285517,0.100842,69568.0,69567.0,0.66696664]
[1730524286247,0.100842,69568.0,69567.0,0.77457273]
[1730524286463,0.100842,69568.0,69567.0,0.66696664]
[1730524286917,0.100842,69568.0,69567.0,0.77459095]
[1730524287365,0.100842,69568.0,69567.0,0.66696664]
[1730524288779,0.100842,69568.0,69567.0,0.66863893]
[1730524289872,0.100842,69568.0,69567.0,0.65463893]
[1730524290517,0.100842,69568.0,69567.0,0.66863893]
[1730524290959,0.100842,69568.0,69567.0,0.65463893]
[1730524291396,0.100842,69568.0,69567.0,0.64069468]
[1730524291613,0.100842,69568.0,69567.0,0.65469468]
[1730524293408,0.100842,69568.0,69567.0,0.66869468]
[1730524297990,0.100842,69568.0,69567.0,0.67081101]
[1730524298208,0.100842,69568.0,69567.0,0.670811]
[1730524299535,0.001642,69568.0,69567.0,0.88590023]
[1730524299759,0.001642,69568.0,69567.0,0.670811]
[1730524299985,0.001642,69568.0,69567.0,0.80012636]
[1730524301781,0.083442,69568.0,69567.0,0.80012636]
[1730524302421,0.083442,69568.0,69567.0,0.670811]
[1730524302638,0.083442,69568.0,69567.0,0.67067506]
[1730524303295,0.083442,69568.0,69567.0,0.54951002]
[1730524307065,0.083442,69568.0,69567.0,0.39109139]
[1730524307271,0.083442,69568.0,69567.0,0.54956558]
[1730524312980,0.083442,69568.0,69567.0,0.54956557]
[1730524320546,0.083442,69568.0,69567.0,0.55035829]
[1730524320979,0.083442,69568.0,69567.0,0.68883559]
[1730524321410,0.083442,69568.0,69567.0,0.55035829]
[1730524322052,0.001642,69568.0,69567.0,0.55035829]
[1730524324170,0.001642,69568.0,69567.0,0.55036701]
[1730524325238,0.178142,69568.0,69567.0,0.55036701]
[1730524325873,0.178142,69568.0,69567.0,0.53636701]
[1730524326086,0.178142,69568.0,69567.0,0.52236701]
[1730524326284,0.178142,69568.0,69567.0,0.55036701]
[1730524328219,0.178142,69568.0,69567.0,0.56436701]
[1730524329500,0.178142,69568.0,69567.0,0.54919405]
[1730524329708,0.180142,69568.0,69567.0,0.52763362]
[1730524329922,0.180142,69568.0,69567.0,0.44136701]
[1730524330337,0.178142,69568.0,69567.0,0.44136701]
[1730524330538,0.178142,69568.0,69567.0,0.34677702]
[1730524331394,0.178142,69568.0,69567.0,0.28209138]
[1730524333075,0.178142,69568.0,69567.0,0.28209137]
[1730524334547,0.178142,69568.0,69567.0,0.32519207]
[1730524334755,0.178142,69568.0,69567.0,0.32519223]
[1730524334973,0.178142,69568.0,69567.0,0.28209137]
[1730524335433,0.178142,69568.0,69567.0,0.32518873]
[1730524337565,0.178142,69568.0,69567.0,0.28209137]
[1730524338200,0.178142,69568.0,69567.0,0.32518284]
[1730524338404,0.178142,69568.0,69567.0,0.28209137]
[1730524348322,0.178142,69568.0,69567.0,0.32516878]
[1730524348542,0.178142,69568.0,69567.0,0.28209137]
[1730524348772,0.178142,69568.0,69567.0,0.32516787]
[1730524349026,0.178142,69568.0,69567.0,0.4971806]
[1730524349192,0.001642,69568.0,69567.0,0.43876493]
[1730524350082,0.001642,69568.0,69567.0,0.59776677]
[1730524350569,0.001642,69568.0,69567.0,0.70545055]
[1730524351239,0.001642,69568.0,69567.0,0.59776677]
[1730524351643,0.001642,69568.0,69567.0,0.43876493]
[1730524354077,0.001642,69568.0,69567.0,0.30509137]
[1730524367319,0.001642,69568.0,69567.0,0.28209137]
[1730524367733,0.0124721,69568.0,69567.0,0.28209137]
[1730524367939,0.001642,69568.0,69567.0,0.28209137]
[1730524368792,0.001642,69568.0,69567.0,0.34675473]
[1730524369044,0.001642,69568.0,69567.0,0.34675472]
[1730524369691,0.001642,69568.0,69567.0,0.28209136]
[1730524369910,0.03328811,69568.0,69567.0,0.28209136]
[1730524370140,0.001642,69568.0,69567.0,0.28209136]
[1730524370360,0.03328811,69568.0,69567.0,0.28209136]
[1730524370575,0.03328811,69568.0,69567.0,0.34675472]
[1730524371244,0.03328811,69568.0,69567.0,0.32521273]
[1730524371684,0.04675073,69568.0,69567.0,0.32521273]
[1730524372125,0.03328811,69568.0,69567.0,0.32521273]
[1730524372978,0.03328811,69568.0,69567.0,0.22459132]
[1730524373181,0.01510388,69568.0,69567.0,0.22459132]
[1730524373665,0.001642,69568.0,69567.0,0.22459132]
[1730524373876,0.01510324,69568.0,69567.0,0.22459132]
[1730524374500,0.001642,69568.0,69567.0,0.32521332]
[1730524374934,0.001642,69568.0,69567.0,0.28209136]
[1730524375159,0.001642,69568.0,69567.0,0.32521544]
[1730524375614,0.001642,69568.0,69567.0,0.32521688]
[1730524378507,0.001642,69568.0,69567.0,0.3252144]
[1730524380274,0.001642,69568.0,69567.0,0.32521377]
[1730524380766,0.001642,69568.0,69567.0,0.18146936]
[1730524380995,0.0151498,69568.0,69567.0,0.22459177]
[1730524381422,0.0151498,69568.0,69567.0,0.18146936]
[1730524382106,0.0151498,69568.0,69567.0,0.28209136]
[1730524382321,0.0151498,69568.0,69567.0,0.32521259]
[1730524382550,0.001642,69568.0,69567.0,0.28209136]
[1730524383186,0.001642,69568.0,69567.0,0.32521259]
[1730524383392,0.001642,69568.0,69567.0,0.32521108]
[1730524383623,0.001642,69568.0,69567.0,0.28209136]
[1730524385639,0.01510198,69568.0,69567.0,0.28209136]
[1730524386522,0.001642,69568.0,69567.0,0.28209136]
[1730524387649,0.015104,69568.0,69567.0,0.28209136]
[1730524388118,0.001642,69568.0,69567.0,0.28209136]
[1730524388590,0.001642,69568.0,69567.0,0.32520672]
[1730524392846,0.01510893,69568.0,69567.0,0.32520672]
[1730524393671,0.001642,69568.0,69567.0,0.32520672]
[1730524394338,0.001642,69568.0,69567.0,0.28209136]
[1730524396565,0.01511368,69568.0,69567.0,0.28209136]
[1730524397894,0.01511368,69568.0,69567.0,0.34677248]
[1730524398100,0.001642,69568.0,69567.0,0.34677248]
[1730524398313,0.01511372,69568.0,69567.0,0.34677248]
[1730524398526,0.001642,69568.0,69567.0,0.34677248]
[1730524398750,0.01511415,69568.0,69567.0,0.50597322]
[1730524401938,0.001642,69568.0,69567.0,0.4412921]
[1730524405453,0.001642,69568.0,69567.0,0.50598604]
[1730524405672,0.01511454,69568.0,69567.0,0.50598604]
[1730524405887,0.001642,69568.0,69567.0,0.4412921]
[1730524408531,0.001642,69568.0,69567.0,0.5275336]
[1730524408747,0.001642,69568.0,69567.0,0.52753359]
[1730524408975,0.001642,69568.0,69567.0,0.44129209]
[1730524410547,0.001642,69568.0,69567.0,0.54909397]
[1730524411405,0.001642,69568.0,69567.0,0.64836644]
[1730524411628,0.001642,69568.0,69567.0,0.54056456]
[1730524411844,0.001642,69568.0,69567.0,0.73876456]
[1730524412089,0.001642,69568.0,69567.0,0.83876456]
[1730524412280,0.001642,69568.0,69567.0,0.84314523]
[1730524415623,0.001642,69568.0,69567.0,0.84299927]
[1730524416545,0.001642,69568.0,69567.0,0.97221122]
[1730524418671,0.001642,69568.0,69567.0,0.84299927]
[1730524420479,0.001642,69568.0,69567.0,0.84286446]
[1730524424861,0.001642,69568.0,69567.0,0.8427924]
[1730524427843,0.001642,69568.0,69567.0,0.9291324]
[1730524428076,0.001642,69568.0,69567.0,0.9579024]
[1730524428710,0.001642,69568.0,69567.0,0.9299024]
[1730524428929,0.001642,69568.0,69567.0,0.9159024]
[1730524429144,0.001642,69568.0,69567.0,0.9439024]
[1730524432488,0.001642,69568.0,69567.0,0.9496534]
[1730524433998,0.001642,69568.0,69567.0,0.9495859]
[1730524437975,0.001644,69573.0,69572.0,0.65199614]
[1730524438186,0.001644,69573.0,69572.0,1.0879022]
[1730524438673,0.001644,69573.0,69572.0,1.0877005]
[1730524439127,0.001644,69573.0,69572.0,1.1157005]
[1730524440426,0.001644,69573.0,69572.0,1.1017005]
[1730524440659,0.001644,69573.0,69572.0,1.10170049]
[1730524440884,0.001644,69573.0,69572.0,1.08770049]
[1730524441360,0.001644,69573.0,69572.0,1.11570049]
[1730524441810,0.001644,69573.0,69572.0,1.10170049]
[1730524442017,0.001644,69573.0,69572.0,1.11570049]
[1730524442367,0.001644,69573.0,69572.0,1.12970049]
[1730524442658,0.001644,69573.0,69572.0,1.17172746]
[1730524443297,0.001628,69584.0,69583.0,0.200599]
[1730524443549,0.001628,69584.0,69583.0,0.60819662]
[1730524443755,0.05433871,69584.0,69583.0,0.60819662]
[1730524443979,0.001628,69584.0,69583.0,0.60819662]
[1730524444654,0.001628,69584.0,69583.0,0.62219662]
[1730524444878,0.001628,69584.0,69583.0,0.76122558]
[1730524446471,0.001628,69584.0,69583.0,0.76132902]
[1730524448191,0.001628,69584.0,69583.0,0.76583558]
[1730524449531,0.001628,69584.0,69583.0,0.8518094]
[1730524450385,0.001628,69584.0,69583.0,0.8575594]
[1730524451034,0.001628,69584.0,69583.0,0.85751929]
[1730524451886,0.001628,69584.0,69583.0,0.85751928]
[1730524453593,0.001628,69584.0,69583.0,0.77155956]
[1730524454703,0.001628,69584.0,69583.0,0.87900922]
[1730524456548,0.001628,69584.0,69583.0,0.77155956]
[1730524456971,0.001628,69584.0,69583.0,0.85789956]
[1730524460058,0.001628,69584.0,69583.0,0.69924342]
[1730524460274,0.001628,69584.0,69583.0,0.85801579]
[1730524463010,0.001628,69584.0,69583.0,0.85801578]
[1730524464366,0.001628,69584.0,69583.0,1.34017558]
[1730524464573,0.001628,69584.0,69583.0,1.12508635]
[1730524464827,0.001628,69584.0,69583.0,0.95519424]
[1730524464992,0.001628,69584.0,69583.0,1.08421079]
[1730524465570,0.001628,69584.0,69583.0,1.07121079]
[1730524466362,0.001628,69584.0,69583.0,0.95619424]
[1730524466571,0.001628,69584.0,69583.0,1.17258136]
[1730524466786,0.001628,69598.0,69589.0,0.51344114]
[1730524467011,0.001628,69598.0,69589.0,0.9795031]
[1730524467862,0.001628,69598.0,69589.0,1.07970952]
[1730524468109,0.001628,69598.0,69589.0,0.8675331]
[1730524468318,0.001628,69598.0,69589.0,0.8535331]
[1730524468741,0.001628,69598.0,69589.0,0.8675331]
[1730524469286,0.05,69594.0,69589.0,0.8675331]
[1730524469941,0.05,69594.0,69589.0,0.88153309]
[1730524475429,0.05,69594.0,69589.0,1.01050951]
[1730524476097,0.05,69594.0,69589.0,0.88153309]
[1730524476332,0.05,69594.0,69589.0,1.01050951]
[1730524476541,0.05,69594.0,69589.0,1.10770951]
[1730524476753,0.05,69594.0,69589.0,1.02071532]
[1730524477197,0.05,69594.0,69589.0,1.14960055]
[1730524477418,0.05,69594.0,69589.0,1.02071532]
[1730524478248,0.05,69594.0,69589.0,1.02055917]
[1730524480463,0.05,69594.0,69589.0,1.02052741]
[1730524482670,0.05,69594.0,69589.0,1.10172741]
[1730524485705,0.05,69594.0,69589.0,0.97854517]
[1730524485933,0.05,69594.0,69589.0,1.26913065]
[1730524486359,0.05,69594.0,69589.0,1.31109596]
[1730524486578,0.05,69594.0,69589.0,1.31109545]
[1730524486789,0.05,69594.0,69589.0,1.21389545]
[1730524487903,0.05,69594.0,69589.0,1.17193065]
[1730524491527,0.05,69594.0,69589.0,1.2139067]
[1730524492053,0.05,69594.0,69589.0,1.05534378]
[1730524492221,0.05,69594.0,69589.0,1.21396661]
[1730524496644,0.05,69594.0,69589.0,1.21400719]
[1730524497919,0.05,69594.0,69589.0,1.24277719]
[1730524504424,0.05,69594.0,69589.0,1.24288716]
[1730524508536,0.05,69594.0,69589.0,1.43341522]
[1730524509217,0.05,69594.0,69589.0,1.24288715]
[1730524510125,0.05,69594.0,69589.0,1.22888715]
[1730524510582,0.05,69594.0,69589.0,1.24288715]
[1730524511236,0.05,69594.0,69589.0,1.22888715]
[1730524512541,0.05,69594.0,69589.0,1.24288715]
[1730524513675,0.05,69594.0,69589.0,1.24307016]
[1730524515002,0.001628,69598.0,69589.0,1.24307016]
[1730524515003,0.001628,69598.0,69597.0,0.42709014]
[1730524515231,0.001628,69598.0,69597.0,0.95418279]
[1730524515469,0.001628,69598.0,69597.0,0.82500729]
[1730524516160,0.001628,69598.0,69597.0,0.83900729]
[1730524516619,0.001628,69598.0,69597.0,0.96740247]
[1730524516846,0.001628,69598.0,69597.0,0.98140247]
[1730524517523,0.001628,69598.0,69597.0,0.96740247]
[1730524517744,0.001628,69598.0,69597.0,0.98140247]
[1730524518194,0.001628,69598.0,69597.0,0.95340247]
[1730524518421,0.001628,69598.0,69597.0,0.97192174]
[1730524518642,0.001628,69598.0,69597.0,0.98592174]
[1730524519087,0.001628,69598.0,69597.0,0.97192174]
[1730524519381,0.001628,69598.0,69597.0,1.14850203]
[1730524519608,0.001628,69598.0,69597.0,0.97192174]
[1730524519827,0.001628,69598.0,69597.0,1.17650136]
[1730524520052,0.001628,69598.0,69597.0,0.98592174]
[1730524520508,0.101128,69610.0,69607.0,0.23811]
[1730524520748,0.101128,69610.0,69609.0,0.36201625]
[1730524520970,0.101128,69610.0,69609.0,0.52116568]
[1730524520971,0.001628,69610.0,69609.0,0.52116568]
[1730524521413,0.001628,69610.0,69609.0,0.60750568]
[1730524521634,0.001628,69610.0,69609.0,0.69173798]
[1730524521851,0.001628,69610.0,69609.0,0.68394698]
[1730524522099,0.001628,69610.0,69609.0,0.78450798]
[1730524522323,0.001628,69610.0,69609.0,0.78450797]
[1730524522768,0.001628,69610.0,69609.0,0.77050797]
[1730524522993,0.001628,69610.0,69609.0,0.78450797]
[1730524523468,0.001628,69610.0,69609.0,0.77050797]
[1730524524123,0.001628,69610.0,69609.0,0.78450797]
[1730524525054,0.001628,69610.0,69609.0,0.92755816]
[1730524525277,0.001628,69610.0,69609.0,0.79850797]
[1730524525483,0.001628,69610.0,69609.0,0.80295474]
[1730524525944,0.001628,69610.0,69609.0,0.93200493]
[1730524526373,0.001628,69610.0,69609.0,0.80295474]
[1730524526784,0.001628,69610.0,69609.0,0.80133031]
[1730524529475,0.001628,69610.0,69609.0,1.01641954]
[1730524529692,0.099928,69624.0,69623.0,0.223541]
[1730524529919,0.15316264,69624.0,69623.0,0.49202335]
[1730524530124,0.15316264,69624.0,69623.0,0.64842234]
[1730524530337,0.11477568,69624.0,69623.0,0.49202334]
[1730524530541,0.11477568,69624.0,69623.0,0.64827489]
[1730524531011,0.099928,69624.0,69623.0,0.71262524]
[1730524531235,0.0983,69630.0,69624.0,0.123]
[1730524531442,0.0983,69630.0,69629.0,0.34935782]
[1730524533789,0.0983,69630.0,69629.0,0.34955084]
[1730524534453,0.0785,69631.0,69629.0,0.33638941]
[1730524534701,0.0785,69631.0,69630.0,0.36198625]
[1730524534926,0.0785,69631.0,69630.0,0.50046355]
[1730524535342,0.0983,69634.0,69633.0,0.100527]
[1730524535556,0.0983,69634.0,69633.0,0.43672339]
[1730524537298,0.0983,69634.0,69633.0,0.34935282]
[1730524538628,0.0983,69634.0,69633.0,0.36335282]
[1730524539727,0.0983,69634.0,69633.0,0.37735282]
[1730524539997,0.0983,69634.0,69633.0,0.36335282]
[1730524540202,0.0983,69634.0,69633.0,0.34935282]
[1730524540410,0.0983,69634.0,69633.0,0.36335282]
[1730524540631,0.099942,69634.0,69633.0,0.36335282]
[1730524540848,0.099942,69634.0,69633.0,0.36354583]
[1730524541051,0.099942,69634.0,69633.0,0.47021851]
[1730524541463,0.099942,69634.0,69633.0,0.48421851]
[1730524542290,0.099942,69634.0,69633.0,0.37754583]
[1730524543253,0.099942,69634.0,69633.0,0.37754582]
[1730524543457,0.001642,69634.0,69633.0,0.78000562]
[1730524543640,0.001642,69634.0,69633.0,0.56491639]
[1730524543843,0.001642,69634.0,69633.0,0.68217303]
[1730524544659,0.001642,69634.0,69633.0,0.66817303]
[1730524545055,0.001642,69634.0,69633.0,0.71094303]
[1730524546113,0.001642,69634.0,69633.0,0.80291803]
[1730524546375,0.001642,69634.0,69633.0,0.78891803]
[1730524546755,0.001642,69634.0,69633.0,0.80291802]
[1730524547810,0.001642,69634.0,69633.0,0.78891802]
[1730524548247,0.001642,69634.0,69633.0,0.80291802]
[1730524548918,0.001642,69634.0,69633.0,0.78891802]
[1730524549615,0.001642,69634.0,69633.0,0.98418859]
[1730524549843,0.001628,69637.0,69636.0,0.309752]
[1730524550080,0.001628,69637.0,69636.0,0.71051195]
[1730524550533,0.001628,69637.0,69636.0,0.78201999]
[1730524550739,0.001628,69637.0,69636.0,0.89730688]
[1730524550955,0.001628,69637.0,69636.0,0.98873559]
[1730524551170,0.001628,69637.0,69636.0,1.12721289]
[1730524551403,0.001628,69637.0,69636.0,1.89129445]
[1730524551811,0.001628,69637.0,69636.0,1.90529445]
[1730524552040,2.478e-05,69637.0,69636.0,1.9267128]
[1730524552932,2.478e-05,69637.0,69636.0,1.9127128]
[1730524553143,2.478e-05,69637.0,69636.0,1.82721289]
[1730524553355,0.001628,69638.0,69637.0,0.338521]
[1730524553559,0.001628,69638.0,69637.0,1.39614813]
[1730524554011,0.001628,69643.0,69642.0,0.338514]
[1730524554219,0.001628,69643.0,69642.0,0.65190336]
[1730524555307,0.001628,69643.0,69642.0,0.66590336]
[1730524555516,0.001628,69643.0,69642.0,0.79420885]
[1730524556570,0.001628,69643.0,69642.0,0.80820885]
[1730524557419,0.001628,69643.0,69642.0,0.85091308]
[1730524557917,0.001628,69643.0,69642.0,0.72083828]
[1730524558147,0.001628,69643.0,69642.0,0.80820885]
[1730524558793,0.001628,69643.0,69642.0,0.80820884]
[1730524560315,0.001628,69643.0,69642.0,0.72083827]
[1730524561178,0.001628,69643.0,69642.0,0.80820884]
[1730524562273,0.001628,69643.0,69642.0,0.72083827]
[1730524563151,0.001628,69643.0,69642.0,0.7635425]
[1730524563354,0.001628,69643.0,69642.0,0.85091307]
[1730524563971,0.001628,69643.0,69642.0,0.72083827]
[1730524564414,0.001628,69643.0,69642.0,0.7635425]
[1730524565754,0.001628,69643.0,69642.0,0.72083827]
[1730524565960,0.001628,69643.0,69642.0,0.7635998]
[1730524566383,0.001628,69643.0,69642.0,0.72083827]
[1730524566833,0.001628,69643.0,69642.0,0.80820884]
[1730524567274,0.001628,69643.0,69642.0,0.87235114]
[1730524567479,0.001628,69643.0,69642.0,0.87235113]
[1730524567681,0.001628,69643.0,69642.0,0.78498056]
[1730524568333,0.001628,69643.0,69642.0,0.94024872]